[Event "Titled Tuesday Blitz June 07 Late 2022"]
[White "Ivanisevic, Ivan"]
[Black "Nazaretyan, Tigran"]
[WhiteFideId "912417"]
[BlackFideId "24162345"]
[WhiteElo "2535"]
[BlackElo "2179"]
[Result "1/2-1/2"]
[Round "08"]
[TimeControl "180+1"]
[Date "2022.06.07"]
[WhiteClock "0:00:04"]
[BlackClock "0:00:24"]

1. e4 {[%clk 0:02:55]}  c5 {[%clk 0:02:59]} 2. Nc3 {[%clk 0:02:53]}  Nc6 {[%clk 0:02:58]} 3. f4 {[%clk 0:02:54]}  g6 {[%clk 0:02:56]} 4. Nf3 {[%clk 0:02:54]}  Bg7 {[%clk 0:02:55]} 5. a3 {[%clk 0:02:54]}  e6 {[%clk 0:02:52]} 6. b4 {[%clk 0:02:53]}  d6 {[%clk 0:02:50]} 7. bxc5 {[%clk 0:02:50]}  dxc5 {[%clk 0:02:48]} 8. e5 {[%clk 0:02:51]}  Nge7 {[%clk 0:02:44]} 9. Ne4 {[%clk 0:02:51]}  O-O {[%clk 0:02:38]} 10. Bb2 {[%clk 0:02:44]}  b6 {[%clk 0:02:34]} 11. Bd3 {[%clk 0:02:28]}  Bb7 {[%clk 0:02:30]} 12. O-O {[%clk 0:02:26]}  Nd4 {[%clk 0:02:29]} 13. Nxd4 {[%clk 0:02:23]}  cxd4 {[%clk 0:02:29]} 14. Nd6 {[%clk 0:02:21]}  Bc6 {[%clk 0:02:24]} 15. Bxd4 {[%clk 0:02:18]}  Nc8 {[%clk 0:02:18]} 16. Bc3 {[%clk 0:01:24]}  Nxd6 {[%clk 0:02:15]} 17. exd6 {[%clk 0:01:24]}  Bxc3 {[%clk 0:02:14]} 18. dxc3 {[%clk 0:01:25]}  Qxd6 {[%clk 0:02:14]} 19. Qd2 {[%clk 0:01:24]}  Rfd8 {[%clk 0:02:11]} 20. c4 {[%clk 0:01:04]}  Qc5+ {[%clk 0:02:08]} 21. Rf2 {[%clk 0:01:01]}  Rd4 {[%clk 0:02:02]} 22. Qb4 {[%clk 0:00:58]}  Qd6 {[%clk 0:01:34]} 23. Re1 {[%clk 0:00:54]}  Rd8 {[%clk 0:01:33]} 24. h4 {[%clk 0:00:48]}  Qc7 {[%clk 0:01:31]} 25. g3 {[%clk 0:00:44]}  h5 {[%clk 0:01:30]} 26. Re5 {[%clk 0:00:43]}  Bb7 {[%clk 0:01:28]} 27. Qe1 {[%clk 0:00:42]}  Qc6 {[%clk 0:01:25]} 28. Kh2 {[%clk 0:00:42]}  Kg7 {[%clk 0:01:13]} 29. Rg5 {[%clk 0:00:40]}  Qd6 {[%clk 0:01:04]} 30. Qe5+ {[%clk 0:00:33]}  Qxe5 {[%clk 0:00:58]} 31. fxe5 {[%clk 0:00:34]}  Ba6 {[%clk 0:00:55]} 32. Rf6 {[%clk 0:00:30]}  Rxd3 {[%clk 0:00:49]} 33. cxd3 {[%clk 0:00:29]}  Rxd3 {[%clk 0:00:50]} 34. g4 {[%clk 0:00:29]}  hxg4 {[%clk 0:00:33]} 35. h5 {[%clk 0:00:29]}  Rh3+ {[%clk 0:00:32]} 36. Kg2 {[%clk 0:00:29]}  Rxh5 {[%clk 0:00:33]} 37. Rxh5 {[%clk 0:00:28]}  gxh5 {[%clk 0:00:33]} 38. Kg3 {[%clk 0:00:27]}  Bxc4 {[%clk 0:00:33]} 39. Kh4 {[%clk 0:00:27]}  Be2 {[%clk 0:00:33]} 40. Rf2 {[%clk 0:00:24]}  Bf3 {[%clk 0:00:32]} 41. Kxh5 {[%clk 0:00:21]}  f6 {[%clk 0:00:32]} 42. exf6+ {[%clk 0:00:17]}  Kxf6 {[%clk 0:00:32]} 43. Kh4 {[%clk 0:00:18]}  Kf5 {[%clk 0:00:32]} 44. Kg3 {[%clk 0:00:18]}  e5 {[%clk 0:00:32]} 45. Rc2 {[%clk 0:00:16]}  e4 {[%clk 0:00:32]} 46. Rc7 {[%clk 0:00:15]}  e3 {[%clk 0:00:32]} 47. Rxa7 {[%clk 0:00:15]}  e2 {[%clk 0:00:32]} 48. Re7 {[%clk 0:00:14]}  Kf6 {[%clk 0:00:31]} 49. Re3 {[%clk 0:00:13]}  b5 {[%clk 0:00:31]} 50. Re8 {[%clk 0:00:12]}  Kf5 {[%clk 0:00:30]} 51. Re3 {[%clk 0:00:11]}  Kf6 {[%clk 0:00:28]} 52. Kf4 {[%clk 0:00:11]}  Kf7 {[%clk 0:00:26]} 53. Kg5 {[%clk 0:00:09]}  Kg7 {[%clk 0:00:24]} 54. Kf4 {[%clk 0:00:09]}  Kf6 {[%clk 0:00:24]} 55. Kg3 {[%clk 0:00:06]}  Kf5 {[%clk 0:00:24]} 56. Re7 {[%clk 0:00:05]}  Kg5 {[%clk 0:00:25]} 57. Re5+ {[%clk 0:00:05]}  Kf6 {[%clk 0:00:25]} 58. Re3 {[%clk 0:00:05]}  Kf5 {[%clk 0:00:24]} 59. Re8 {[%clk 0:00:05]}  Kg5 {[%clk 0:00:24]} 60. Re3 {[%clk 0:00:04]}  Kf6 {[%clk 0:00:24]} 1/2-1/2


[Site "https://www.chess.com"]

[Event "Titled Tuesday Blitz June 07 Late 2022"]
[White "Jaracz, Pawel"]
[Black "Moroni, Luca Jr"]
[WhiteFideId "1102222"]
[BlackFideId "865834"]
[WhiteElo "2459"]
[BlackElo "2573"]
[Result "0-1"]
[Round "08"]
[TimeControl "180+1"]
[Date "2022.06.07"]
[WhiteClock "0:00:06"]
[BlackClock "0:00:15"]

1. e4 {[%clk 0:03:00]}  d6 {[%clk 0:02:59]} 2. d4 {[%clk 0:03:00]}  e5 {[%clk 0:03:00]} 3. dxe5 {[%clk 0:02:59]}  dxe5 {[%clk 0:03:00]} 4. Qxd8+ {[%clk 0:02:58]}  Kxd8 {[%clk 0:03:01]} 5. Nf3 {[%clk 0:02:58]}  f6 {[%clk 0:03:01]} 6. Be3 {[%clk 0:02:48]}  Be6 {[%clk 0:03:01]} 7. Nbd2 {[%clk 0:02:47]}  c6 {[%clk 0:03:01]} 8. Bc4 {[%clk 0:02:44]}  Bxc4 {[%clk 0:02:56]} 9. Nxc4 {[%clk 0:02:44]}  Nd7 {[%clk 0:02:57]} 10. Ke2 {[%clk 0:02:36]}  Kc7 {[%clk 0:02:56]} 11. Rhd1 {[%clk 0:02:34]}  b5 {[%clk 0:02:42]} 12. Na5 {[%clk 0:02:32]}  Nc5 {[%clk 0:02:29]} 13. Nd2 {[%clk 0:02:28]}  Na4 {[%clk 0:02:26]} 14. Rab1 {[%clk 0:02:24]}  Bb4 {[%clk 0:02:25]} 15. Ndb3 {[%clk 0:02:21]}  Ne7 {[%clk 0:02:18]} 16. a3 {[%clk 0:01:46]}  Bxa5 {[%clk 0:02:17]} 17. Nxa5 {[%clk 0:01:44]}  Rhd8 {[%clk 0:02:17]} 18. Rxd8 {[%clk 0:01:36]}  Rxd8 {[%clk 0:02:17]} 19. c4 {[%clk 0:01:17]}  a6 {[%clk 0:02:10]} 20. Bd2 {[%clk 0:00:29]}  Nc5 {[%clk 0:01:39]} 21. f3 {[%clk 0:00:26]}  Ne6 {[%clk 0:01:37]} 22. Rc1 {[%clk 0:00:22]}  Nd4+ {[%clk 0:01:29]} 23. Ke1 {[%clk 0:00:21]}  Kb6 {[%clk 0:01:30]} 24. b4 {[%clk 0:00:18]}  f5 {[%clk 0:01:20]} 25. Be3 {[%clk 0:00:18]}  c5 {[%clk 0:01:20]} 26. exf5 {[%clk 0:00:13]}  Nexf5 {[%clk 0:01:20]} 27. Bf2 {[%clk 0:00:14]}  Rc8 {[%clk 0:00:54]} 28. cxb5 {[%clk 0:00:14]}  Kxb5 {[%clk 0:00:52]} 29. g4 {[%clk 0:00:08]}  Nxf3+ {[%clk 0:00:48]} 30. Ke2 {[%clk 0:00:07]}  N5d4+ {[%clk 0:00:47]} 31. Kd3 {[%clk 0:00:08]}  c4+ {[%clk 0:00:17]} 32. Nxc4 {[%clk 0:00:07]}  e4+ {[%clk 0:00:17]} 33. Kxe4 {[%clk 0:00:07]}  Rxc4 {[%clk 0:00:17]} 34. Rxc4 {[%clk 0:00:07]}  Kxc4 {[%clk 0:00:18]} 35. a4 {[%clk 0:00:05]}  Nd2+ {[%clk 0:00:17]} 36. Ke5 {[%clk 0:00:05]}  Nc6+ {[%clk 0:00:17]} 37. Ke6 {[%clk 0:00:05]}  Nxb4 {[%clk 0:00:16]} 38. Kf7 {[%clk 0:00:05]}  g5 {[%clk 0:00:15]} 39. Kg7 {[%clk 0:00:06]}  Nf3 {[%clk 0:00:16]} 40. Bg3 {[%clk 0:00:05]}  Nd5 {[%clk 0:00:15]} 41. Kxh7 {[%clk 0:00:06]}  Nf6+ {[%clk 0:00:15]} 42. Kg6 {[%clk 0:00:06]}  Nxg4 {[%clk 0:00:16]} 43. Kf5 {[%clk 0:00:07]}  Ngxh2 {[%clk 0:00:16]} 44. a5 {[%clk 0:00:06]}  Kb5 {[%clk 0:00:15]} 45. Bc7 {[%clk 0:00:06]}  Nf1 {[%clk 0:00:15]} 46. Kg4 {[%clk 0:00:06]}  N1d2 {[%clk 0:00:16]} 47. Bd8 {[%clk 0:00:06]}  Ne5+ {[%clk 0:00:14]} 48. Kxg5 {[%clk 0:00:06]}  Nf7+ {[%clk 0:00:14]} 49. Kf5 {[%clk 0:00:06]}  Nxd8 {[%clk 0:00:15]} 0-1


[Site "https://www.chess.com"]

[Event "Titled Tuesday Blitz June 07 Late 2022"]
[White "Korchmar, Vasiliy"]
[Black "Bluebaum, Matthias"]
[WhiteFideId "24131750"]
[BlackFideId "24651516"]
[WhiteElo "2370"]
[BlackElo "2556"]
[Result "0-1"]
[Round "08"]
[TimeControl "180+1"]
[Date "2022.06.07"]
[WhiteClock "0:00:04"]
[BlackClock "0:00:09"]

1. e4 {[%clk 0:03:00]}  c6 {[%clk 0:02:58]} 2. d4 {[%clk 0:03:00]}  d5 {[%clk 0:02:59]} 3. e5 {[%clk 0:03:00]}  Bf5 {[%clk 0:02:59]} 4. c4 {[%clk 0:03:00]}  e6 {[%clk 0:02:59]} 5. Nc3 {[%clk 0:03:01]}  Bb4 {[%clk 0:02:56]} 6. Ne2 {[%clk 0:02:55]}  Ne7 {[%clk 0:02:49]} 7. Ng3 {[%clk 0:02:55]}  O-O {[%clk 0:02:39]} 8. Bd3 {[%clk 0:02:29]}  dxc4 {[%clk 0:02:22]} 9. Bxc4 {[%clk 0:02:23]}  c5 {[%clk 0:02:22]} 10. Nxf5 {[%clk 0:02:05]}  Nxf5 {[%clk 0:02:22]} 11. d5 {[%clk 0:02:05]}  exd5 {[%clk 0:02:22]} 12. Qxd5 {[%clk 0:02:02]}  Nc6 {[%clk 0:02:19]} 13. O-O {[%clk 0:01:42]}  Qxd5 {[%clk 0:02:04]} 14. Bxd5 {[%clk 0:01:43]}  Rad8 {[%clk 0:02:04]} 15. Bxc6 {[%clk 0:01:35]}  bxc6 {[%clk 0:02:05]} 16. Ne4 {[%clk 0:01:26]}  Rd4 {[%clk 0:01:59]} 17. f3 {[%clk 0:01:22]}  Re8 {[%clk 0:01:59]} 18. Bf4 {[%clk 0:01:18]}  Ba5 {[%clk 0:01:40]} 19. Rac1 {[%clk 0:01:05]}  Bc7 {[%clk 0:01:31]} 20. g4 {[%clk 0:00:59]}  Nh4 {[%clk 0:01:28]} 21. Bg3 {[%clk 0:00:44]}  Ng6 {[%clk 0:00:56]} 22. Nd6 {[%clk 0:00:44]}  Rb8 {[%clk 0:00:48]} 23. b3 {[%clk 0:00:41]}  Rd2 {[%clk 0:00:46]} 24. Rf2 {[%clk 0:00:36]}  Rd3 {[%clk 0:00:45]} 25. f4 {[%clk 0:00:31]}  Ne7 {[%clk 0:00:33]} 26. f5 {[%clk 0:00:23]}  Nd5 {[%clk 0:00:33]} 27. Nc4 {[%clk 0:00:19]}  Re8 {[%clk 0:00:32]} 28. Re1 {[%clk 0:00:16]}  Rd4 {[%clk 0:00:29]} 29. h3 {[%clk 0:00:15]}  f6 {[%clk 0:00:25]} 30. Kg2 {[%clk 0:00:07]}  Rd3 {[%clk 0:00:12]} 31. Rfe2 {[%clk 0:00:04]}  h5 {[%clk 0:00:10]} 32. Bh2 {[%clk 0:00:04]}  hxg4 {[%clk 0:00:06]} 33. hxg4 {[%clk 0:00:05]}  fxe5 {[%clk 0:00:06]} 34. Bxe5 {[%clk 0:00:04]}  Bxe5 {[%clk 0:00:06]} 35. Nxe5 {[%clk 0:00:05]}  Nf4+ {[%clk 0:00:05]} 36. Kf2 {[%clk 0:00:04]}  Rd5 {[%clk 0:00:05]} 37. Re3 {[%clk 0:00:03]}  Rdxe5 {[%clk 0:00:06]} 38. Rxe5 {[%clk 0:00:01]}  Rxe5 {[%clk 0:00:06]} 39. Rxe5 {[%clk 0:00:02]}  Nd3+ {[%clk 0:00:07]} 40. Ke3 {[%clk 0:00:03]}  Nxe5 {[%clk 0:00:08]} 41. g5 {[%clk 0:00:03]}  Kf7 {[%clk 0:00:06]} 42. Ke4 {[%clk 0:00:04]}  Nd7 {[%clk 0:00:06]} 43. Kd3 {[%clk 0:00:03]}  Nb6 {[%clk 0:00:06]} 44. Kc3 {[%clk 0:00:03]}  Nd5+ {[%clk 0:00:05]} 45. Kc4 {[%clk 0:00:04]}  Ne3+ {[%clk 0:00:06]} 46. Kxc5 {[%clk 0:00:04]}  Nxf5 {[%clk 0:00:07]} 47. Kxc6 {[%clk 0:00:04]}  Kg6 {[%clk 0:00:07]} 48. b4 {[%clk 0:00:04]}  Kxg5 {[%clk 0:00:08]} 49. b5 {[%clk 0:00:04]}  Nd4+ {[%clk 0:00:08]} 50. Kc5 {[%clk 0:00:04]}  Nxb5 {[%clk 0:00:02]} 51. Kxb5 {[%clk 0:00:05]}  Kf5 {[%clk 0:00:02]} 52. Ka6 {[%clk 0:00:05]}  g5 {[%clk 0:00:03]} 53. Kxa7 {[%clk 0:00:05]}  g4 {[%clk 0:00:04]} 54. a4 {[%clk 0:00:05]}  g3 {[%clk 0:00:05]} 55. a5 {[%clk 0:00:06]}  g2 {[%clk 0:00:06]} 56. a6 {[%clk 0:00:06]}  g1=Q+ {[%clk 0:00:06]} 57. Kb7 {[%clk 0:00:04]}  Qg2+ {[%clk 0:00:07]} 58. Kb8 {[%clk 0:00:03]}  Qg3+ {[%clk 0:00:07]} 59. Kb7 {[%clk 0:00:03]}  Qf3+ {[%clk 0:00:07]} 60. Kb8 {[%clk 0:00:03]}  Qf4+ {[%clk 0:00:08]} 61. Kb7 {[%clk 0:00:04]}  Qe4+ {[%clk 0:00:08]} 62. Kb8 {[%clk 0:00:04]}  Qe5+ {[%clk 0:00:09]} 63. Kb7 {[%clk 0:00:04]}  Qb5+ {[%clk 0:00:09]} 64. Ka7 {[%clk 0:00:04]}  Ke6 {[%clk 0:00:09]} 0-1


[Site "https://www.chess.com"]

[Event "Titled Tuesday Blitz June 07 Late 2022"]
[White "Moussard, Jules"]
[Black "Bok, Benjamin"]
[WhiteFideId "642908"]
[BlackFideId "1017063"]
[WhiteElo "2589"]
[BlackElo "2658"]
[Result "1-0"]
[Round "08"]
[TimeControl "180+1"]
[Date "2022.06.07"]
[WhiteClock "0:01:06"]
[BlackClock "0:00:04"]

1. f4 {[%clk 0:03:00]}  d5 {[%clk 0:02:59]} 2. Nf3 {[%clk 0:03:01]}  g6 {[%clk 0:03:00]} 3. g3 {[%clk 0:03:02]}  Bg7 {[%clk 0:03:00]} 4. Bg2 {[%clk 0:03:02]}  b6 {[%clk 0:03:01]} 5. O-O {[%clk 0:03:02]}  Bb7 {[%clk 0:03:01]} 6. d3 {[%clk 0:03:03]}  Nf6 {[%clk 0:03:00]} 7. e4 {[%clk 0:02:59]}  dxe4 {[%clk 0:02:59]} 8. Ng5 {[%clk 0:02:59]}  O-O {[%clk 0:02:18]} 9. Nc3 {[%clk 0:02:59]}  Nc6 {[%clk 0:01:58]} 10. dxe4 {[%clk 0:02:58]}  e5 {[%clk 0:01:54]} 11. f5 {[%clk 0:02:44]}  Nd4 {[%clk 0:01:53]} 12. g4 {[%clk 0:02:32]}  Qe7 {[%clk 0:01:43]} 13. h3 {[%clk 0:02:23]}  Rad8 {[%clk 0:01:41]} 14. Bd2 {[%clk 0:02:17]}  h6 {[%clk 0:01:33]} 15. Nf3 {[%clk 0:02:13]}  Nxe4 {[%clk 0:01:33]} 16. Nxe4 {[%clk 0:01:51]}  Bxe4 {[%clk 0:01:34]} 17. Nxd4 {[%clk 0:01:51]}  Bxg2 {[%clk 0:01:34]} 18. Kxg2 {[%clk 0:01:52]}  Rxd4 {[%clk 0:01:16]} 19. Qe2 {[%clk 0:01:53]}  gxf5 {[%clk 0:01:04]} 20. Rxf5 {[%clk 0:01:52]}  Qe6 {[%clk 0:01:01]} 21. Be3 {[%clk 0:01:47]}  Rd7 {[%clk 0:00:50]} 22. Raf1 {[%clk 0:01:37]}  Rfd8 {[%clk 0:00:38]} 23. g5 {[%clk 0:01:34]}  hxg5 {[%clk 0:00:30]} 24. Rxg5 {[%clk 0:01:35]}  f6 {[%clk 0:00:26]} 25. Rg6 {[%clk 0:01:31]}  Qc6+ {[%clk 0:00:17]} 26. Kh2 {[%clk 0:01:29]}  Qe4 {[%clk 0:00:14]} 27. Rfg1 {[%clk 0:01:26]}  Rd2 {[%clk 0:00:03]} 28. Rxg7+ {[%clk 0:01:26]}  Kf8 {[%clk 0:00:03]} 29. Qxd2 {[%clk 0:01:10]}  Rxd2+ {[%clk 0:00:04]} 30. Bxd2 {[%clk 0:01:11]}  Qxc2 {[%clk 0:00:04]} 31. R1g2 {[%clk 0:01:09]}  Qc4 {[%clk 0:00:05]} 32. Bh6 {[%clk 0:01:07]}  Ke8 {[%clk 0:00:05]} 33. Rh7 {[%clk 0:01:06]}  a5 {[%clk 0:00:05]} 34. b3 {[%clk 0:01:06]}  Qd5 {[%clk 0:00:03]} 35. Rxc7 {[%clk 0:01:05]}  e4 {[%clk 0:00:03]} 36. Bf4 {[%clk 0:01:06]}  e3 {[%clk 0:00:03]} 37. Rc3 {[%clk 0:01:03]}  e2 {[%clk 0:00:02]} 38. Re3+ {[%clk 0:01:02]}  Kf7 {[%clk 0:00:02]} 39. Rgxe2 {[%clk 0:01:03]}  Qd4 {[%clk 0:00:02]} 40. Bg3 {[%clk 0:01:03]}  a4 {[%clk 0:00:03]} 41. bxa4 {[%clk 0:01:03]}  Qxa4 {[%clk 0:00:03]} 42. Rf3 {[%clk 0:01:03]}  Kg6 {[%clk 0:00:03]} 43. Ref2 {[%clk 0:01:03]}  f5 {[%clk 0:00:03]} 44. Rxf5 {[%clk 0:01:04]}  b5 {[%clk 0:00:03]} 45. Rf6+ {[%clk 0:01:05]}  Kg7 {[%clk 0:00:04]} 46. Be5 {[%clk 0:01:05]}  Kg8 {[%clk 0:00:04]} 47. Rg2+ {[%clk 0:01:05]}  Kh7 {[%clk 0:00:04]} 48. Rf7+ {[%clk 0:01:06]}  Kh6 {[%clk 0:00:04]} 49. Bf4+ {[%clk 0:01:06]} 1-0


[Site "https://www.chess.com"]

[Event "Titled Tuesday Blitz June 07 Late 2022"]
[White "Rosen, Eric"]
[Black "Matlakov, Maxim"]
[WhiteFideId "2032562"]
[BlackFideId "4168003"]
[WhiteElo "2362"]
[BlackElo "2669"]
[Result "0-1"]
[Round "08"]
[TimeControl "180+1"]
[Date "2022.06.07"]
[WhiteClock "0:00:02"]
[BlackClock "0:00:05"]

1. d4 {[%clk 0:03:00]}  g6 {[%clk 0:02:59]} 2. e4 {[%clk 0:03:00]}  Bg7 {[%clk 0:02:59]} 3. Nf3 {[%clk 0:03:00]}  d6 {[%clk 0:02:59]} 4. Bc4 {[%clk 0:03:00]}  e6 {[%clk 0:02:58]} 5. Bb3 {[%clk 0:02:57]}  Ne7 {[%clk 0:02:58]} 6. O-O {[%clk 0:02:55]}  b6 {[%clk 0:02:57]} 7. Re1 {[%clk 0:02:54]}  Bb7 {[%clk 0:02:57]} 8. c3 {[%clk 0:02:55]}  Nd7 {[%clk 0:02:57]} 9. Nbd2 {[%clk 0:02:55]}  O-O {[%clk 0:02:52]} 10. Nf1 {[%clk 0:02:56]}  c5 {[%clk 0:02:51]} 11. Ng3 {[%clk 0:02:54]}  Rc8 {[%clk 0:02:50]} 12. Bg5 {[%clk 0:02:53]}  h6 {[%clk 0:02:50]} 13. Be3 {[%clk 0:02:54]}  Nf6 {[%clk 0:02:48]} 14. Bc2 {[%clk 0:02:48]}  cxd4 {[%clk 0:02:46]} 15. Nxd4 {[%clk 0:02:37]}  a6 {[%clk 0:02:42]} 16. f3 {[%clk 0:02:35]}  e5 {[%clk 0:02:39]} 17. Nde2 {[%clk 0:02:13]}  d5 {[%clk 0:02:39]} 18. Qd2 {[%clk 0:02:12]}  dxe4 {[%clk 0:02:37]} 19. Nxe4 {[%clk 0:02:07]}  Qxd2 {[%clk 0:02:35]} 20. Bxd2 {[%clk 0:02:07]}  Nxe4 {[%clk 0:02:07]} 21. Bxe4 {[%clk 0:02:07]}  Bxe4 {[%clk 0:02:06]} 22. fxe4 {[%clk 0:02:08]}  f5 {[%clk 0:01:54]} 23. Be3 {[%clk 0:01:58]}  b5 {[%clk 0:01:52]} 24. Rad1 {[%clk 0:01:51]}  Rfd8 {[%clk 0:01:49]} 25. Bb6 {[%clk 0:01:43]}  Re8 {[%clk 0:01:25]} 26. Rd7 {[%clk 0:01:42]}  Rc6 {[%clk 0:01:21]} 27. Bf2 {[%clk 0:01:33]}  Nc8 {[%clk 0:01:21]} 28. Red1 {[%clk 0:01:32]}  Bf6 {[%clk 0:01:17]} 29. exf5 {[%clk 0:01:25]}  gxf5 {[%clk 0:01:18]} 30. Ng3 {[%clk 0:01:26]}  Ne7 {[%clk 0:01:16]} 31. Nh5 {[%clk 0:01:06]}  Bh8 {[%clk 0:01:16]} 32. Ra7 {[%clk 0:00:56]}  Nc8 {[%clk 0:01:08]} 33. Rb7 {[%clk 0:00:49]}  Nd6 {[%clk 0:01:06]} 34. Ra7 {[%clk 0:00:34]}  Ne4 {[%clk 0:01:03]} 35. Rdd7 {[%clk 0:00:30]}  Nxf2 {[%clk 0:01:01]} 36. Kxf2 {[%clk 0:00:27]}  b4 {[%clk 0:01:02]} 37. Ng3 {[%clk 0:00:12]}  bxc3 {[%clk 0:01:00]} 38. bxc3 {[%clk 0:00:12]}  Rf8 {[%clk 0:00:46]} 39. Rac7 {[%clk 0:00:12]}  Rb6 {[%clk 0:00:44]} 40. Rb7 {[%clk 0:00:07]}  Rg6 {[%clk 0:00:44]} 41. c4 {[%clk 0:00:05]}  e4 {[%clk 0:00:44]} 42. c5 {[%clk 0:00:02]}  e3+ {[%clk 0:00:45]} 43. Kf3 {[%clk 0:00:02]}  f4 {[%clk 0:00:45]} 44. Ne2 {[%clk 0:00:02]}  Rc6 {[%clk 0:00:42]} 45. Rbc7 {[%clk 0:00:02]}  Rg6 {[%clk 0:00:41]} 46. Rd6 {[%clk 0:00:02]}  Rg5 {[%clk 0:00:40]} 47. h4 {[%clk 0:00:02]}  Rg7 {[%clk 0:00:22]} 48. Rxg7+ {[%clk 0:00:02]}  Bxg7 {[%clk 0:00:23]} 49. c6 {[%clk 0:00:03]}  Rc8 {[%clk 0:00:19]} 50. Re6 {[%clk 0:00:02]}  Kf7 {[%clk 0:00:19]} 51. Nxf4 {[%clk 0:00:03]}  Bf6 {[%clk 0:00:17]} 52. Kxe3 {[%clk 0:00:02]}  Bxh4 {[%clk 0:00:17]} 53. Rd6 {[%clk 0:00:01]}  Be7 {[%clk 0:00:12]} 54. Rd7 {[%clk 0:00:02]}  Rxc6 {[%clk 0:00:12]} 55. Nd5 {[%clk 0:00:02]}  Re6+ {[%clk 0:00:11]} 56. Kf3 {[%clk 0:00:03]}  Ke8 {[%clk 0:00:11]} 57. Ra7 {[%clk 0:00:03]}  Kf8 {[%clk 0:00:08]} 58. Nc7 {[%clk 0:00:02]}  Rf6+ {[%clk 0:00:08]} 59. Kg4 {[%clk 0:00:02]}  Rg6+ {[%clk 0:00:08]} 60. Kf3 {[%clk 0:00:02]}  Rf6+ {[%clk 0:00:08]} 61. Ke2 {[%clk 0:00:03]}  Rc6 {[%clk 0:00:08]} 62. Nxa6 {[%clk 0:00:03]}  Rc2+ {[%clk 0:00:09]} 63. Kf3 {[%clk 0:00:04]}  Rxa2 {[%clk 0:00:09]} 64. Ra8+ {[%clk 0:00:03]}  Kf7 {[%clk 0:00:10]} 65. g3 {[%clk 0:00:01]}  Ra3+ {[%clk 0:00:09]} 66. Kg4 {[%clk 0:00:02]}  Bd6 {[%clk 0:00:09]} 67. Ra7+ {[%clk 0:00:02]}  Kg6 {[%clk 0:00:09]} 68. Kh3 {[%clk 0:00:01]}  h5 {[%clk 0:00:09]} 69. Kh2 {[%clk 0:00:01]}  Bxg3+ {[%clk 0:00:08]} 70. Kg2 {[%clk 0:00:01]}  Bd6 {[%clk 0:00:09]} 71. Ra8 {[%clk 0:00:01]}  h4 {[%clk 0:00:09]} 72. Nc7 {[%clk 0:00:02]}  Rg3+ {[%clk 0:00:08]} 73. Kh1 {[%clk 0:00:02]}  Bxc7 {[%clk 0:00:09]} 74. Ra6+ {[%clk 0:00:02]}  Kf5 {[%clk 0:00:08]} 75. Ra2 {[%clk 0:00:02]}  Be5 {[%clk 0:00:08]} 76. Rg2 {[%clk 0:00:02]}  Kg4 {[%clk 0:00:07]} 77. Re2 {[%clk 0:00:01]}  Bf4 {[%clk 0:00:07]} 78. Re8 {[%clk 0:00:02]}  Kh3 {[%clk 0:00:07]} 79. Re1 {[%clk 0:00:02]}  Rf3 {[%clk 0:00:07]} 80. Rd1 {[%clk 0:00:02]}  Bg3 {[%clk 0:00:07]} 81. Rc1 {[%clk 0:00:01]}  Bf2 {[%clk 0:00:06]} 82. Rd1 {[%clk 0:00:01]}  Be3 {[%clk 0:00:07]} 83. Re1 {[%clk 0:00:01]}  Kg3 {[%clk 0:00:06]} 84. Rd1 {[%clk 0:00:01]}  h3 {[%clk 0:00:07]} 85. Re1 {[%clk 0:00:01]}  Kh4 {[%clk 0:00:06]} 86. Rd1 {[%clk 0:00:01]}  Rg3 {[%clk 0:00:06]} 87. Rf1 {[%clk 0:00:01]}  Kg4 {[%clk 0:00:06]} 88. Rd1 {[%clk 0:00:01]}  Kf3 {[%clk 0:00:06]} 89. Rb1 {[%clk 0:00:02]}  Rg4 {[%clk 0:00:05]} 90. Rf1+ {[%clk 0:00:03]}  Bf2 {[%clk 0:00:05]} 91. Rb1 {[%clk 0:00:03]}  Re4 {[%clk 0:00:05]} 92. Rb3+ {[%clk 0:00:03]}  Be3 {[%clk 0:00:05]} 93. Rb1 {[%clk 0:00:04]}  Kg3 {[%clk 0:00:05]} 94. Rf1 {[%clk 0:00:04]}  Bf2 {[%clk 0:00:05]} 95. Rd1 {[%clk 0:00:04]}  Be1 {[%clk 0:00:05]} 96. Rd3+ {[%clk 0:00:04]}  Kg4 {[%clk 0:00:05]} 97. Rd1 {[%clk 0:00:03]}  Re2 {[%clk 0:00:05]} 98. Rd3 {[%clk 0:00:03]}  Bf2 {[%clk 0:00:05]} 99. Rd1 {[%clk 0:00:03]}  Be3 {[%clk 0:00:05]} 100. Rb1 {[%clk 0:00:03]}  Kg3 {[%clk 0:00:05]} 101. Rf1 {[%clk 0:00:02]}  Rh2# {[%clk 0:00:05]} 0-1


[Site "https://www.chess.com"]

[Event "Titled Tuesday Blitz June 07 Late 2022"]
[White "Sarana, Alexey"]
[Black "Silva, Miguel Antonio Neto"]
[WhiteFideId "24133795"]
[BlackFideId "1911929"]
[WhiteElo "2666"]
[BlackElo "2204"]
[Result "0-1"]
[Round "08"]
[TimeControl "180+1"]
[Date "2022.06.07"]
[WhiteClock "0:00:51"]
[BlackClock "0:00:30"]

1. e4 {[%clk 0:03:00]}  c5 {[%clk 0:02:59]} 2. Nf3 {[%clk 0:03:01]}  d6 {[%clk 0:02:59]} 3. d4 {[%clk 0:03:01]}  cxd4 {[%clk 0:03:00]} 4. Nxd4 {[%clk 0:03:02]}  Nf6 {[%clk 0:03:00]} 5. Nc3 {[%clk 0:03:02]}  a6 {[%clk 0:03:01]} 6. Be3 {[%clk 0:03:03]}  e5 {[%clk 0:03:00]} 7. Nb3 {[%clk 0:03:03]}  Be6 {[%clk 0:02:59]} 8. f3 {[%clk 0:03:04]}  h5 {[%clk 0:02:58]} 9. Nd5 {[%clk 0:03:03]}  Bxd5 {[%clk 0:02:57]} 10. exd5 {[%clk 0:03:04]}  g6 {[%clk 0:02:57]} 11. Qd2 {[%clk 0:03:03]}  Nbd7 {[%clk 0:02:57]} 12. O-O-O {[%clk 0:03:01]}  Bg7 {[%clk 0:02:55]} 13. Kb1 {[%clk 0:02:58]}  Rc8 {[%clk 0:02:55]} 14. Na5 {[%clk 0:02:55]}  Qc7 {[%clk 0:02:50]} 15. c4 {[%clk 0:02:55]}  O-O {[%clk 0:02:39]} 16. Be2 {[%clk 0:02:54]}  e4 {[%clk 0:02:33]} 17. f4 {[%clk 0:02:53]}  Nc5 {[%clk 0:02:29]} 18. h3 {[%clk 0:02:48]}  h4 {[%clk 0:02:25]} 19. Qe1 {[%clk 0:02:38]}  Nfd7 {[%clk 0:02:19]} 20. f5 {[%clk 0:02:30]}  Ne5 {[%clk 0:02:17]} 21. Bxc5 {[%clk 0:02:17]}  Qxc5 {[%clk 0:02:10]} 22. Rf1 {[%clk 0:02:17]}  Rfe8 {[%clk 0:01:58]} 23. f6 {[%clk 0:02:17]}  Bf8 {[%clk 0:01:40]} 24. Nb3 {[%clk 0:02:16]}  Qe3 {[%clk 0:01:36]} 25. Rc1 {[%clk 0:02:15]}  Bh6 {[%clk 0:01:31]} 26. Rc3 {[%clk 0:02:15]}  Nd3 {[%clk 0:01:21]} 27. Bxd3 {[%clk 0:01:29]}  exd3 {[%clk 0:01:21]} 28. Qxh4 {[%clk 0:01:28]}  b5 {[%clk 0:00:54]} 29. Rd1 {[%clk 0:01:18]}  Re4 {[%clk 0:00:45]} 30. g4 {[%clk 0:01:14]}  Bg5 {[%clk 0:00:39]} 31. Rdxd3 {[%clk 0:01:04]}  Qxd3+ {[%clk 0:00:39]} 32. Rxd3 {[%clk 0:01:01]}  Bxh4 {[%clk 0:00:37]} 33. c5 {[%clk 0:00:52]}  dxc5 {[%clk 0:00:35]} 34. Rd1 {[%clk 0:00:50]}  Re1 {[%clk 0:00:31]} 35. d6 {[%clk 0:00:51]}  Rxd1+ {[%clk 0:00:30]} 0-1


[Site "https://www.chess.com"]